lending/lending_fUSD_20250408
["ID","MTS","AMOUNT","RATE_DAILY","PERIOD"]
[357559613,1744152644860,-153.81487,0.00046335,14]
[357559614,1744152644871,-267.197525,0.00046335,14]
[357559615,1744152644883,-267.197525,0.00046335,14]
[357559616,1744152644892,-151.0,0.00046335,14]
[357559617,1744152644901,-151.0,0.00046335,14]
[357559618,1744152644915,-151.0,0.00046335,14]
[357559619,1744152644923,-151.0,0.00046335,14]
[357559620,1744152644933,-258.0384,0.00046335,14]
[357559621,1744152644942,-151.0,0.00046335,14]
[357559622,1744152644952,-2169.56542,0.00046335,14]
[357559623,1744152644962,-2169.56542,0.00046335,14]
[357559624,1744152644972,-896.06090554,0.00046387,2]
[357559625,1744152644981,-249.423022,0.00046466,14]
[357559626,1744152644991,-7478.47125371,0.00046466,3]
[357559627,1744152645000,-246.79185682,0.00046476,15]
[357559628,1744152645009,-1360.4881041,0.000468,10]
[357559629,1744152645019,-1096.15,0.00047,14]
[357559630,1744152645028,-7478.47125371,0.0004707,3]
[357559631,1744152645037,-9122.00742452,0.0004707,3]
[357559632,1744152645047,-372.762222,0.0004708,14]
[357559633,1744152645056,-372.762222,0.0004708,14]
[357559634,1744152645065,-244.769885,0.0004708,14]
[357559635,1744152645074,-244.769885,0.0004708,14]
[357559636,1744152645083,-174.800116,0.0004708,14]
[357559637,1744152645092,-174.800116,0.0004708,14]
[357559638,1744152645101,-151.0,0.0004708,14]
[357559639,1744152645111,-151.0,0.0004708,14]
[357559640,1744152645120,-157.598232,0.0004709,14]
[357559641,1744152645129,-157.598232,0.0004709,14]
[357559642,1744152645138,-151.0,0.0004709,14]
[357559643,1744152645148,-9122.00742452,0.0004709,3]
[357559644,1744152645159,-2000.0,0.000471,2]
[357559645,1744152645169,-2169.56542,0.000471,14]
[357559646,1744152645178,-2169.56542,0.000471,14]
[357559647,1744152645188,-687.07384335,0.000475,30]
[357559648,1744152645198,-7478.47125371,0.0004757,3]
[357559649,1744152645207,-9122.00742452,0.0004758,3]
[357559650,1744152645216,-151.0,0.0004759,14]
[357559651,1744152645225,-151.0,0.0004759,14]
[357559652,1744152645235,-261.19549,0.0004759,14]
[357559653,1744152645245,-261.19549,0.0004759,14]
[357559654,1744152645255,-5237.19913423,0.000476,2]
[357559655,1744152645266,-7478.47125371,0.00047607,3]
[357559656,1744152645275,-500.0,0.00047617,10]
[357559657,1744152645285,-330.42,0.00047686,2]
[357559658,1744152645295,-184.76997001,0.00047752,23]
[357559659,1744152645305,-2598.54541699,0.00047777,2]
[357559660,1744152645314,-305.34323157,0.00047886,29]
[357559661,1744152645324,-163.72059963,0.000479,23]
[357559662,1744152645334,-176.46,0.00047945,2]
[357559663,1744152645344,-9122.00742452,0.0004796,4]
[357559664,1744152645354,-14956.9425074,0.0004796,4]
[357559665,1744152645364,-7478.47125371,0.0004797,4]
[357559666,1744152645374,-2169.56542,0.0004797,14]
[357559667,1744152645383,-2169.565426,0.0004797,14]
[357559668,1744152645393,-206.41346642,0.0004797,2]
[357559669,1744152645403,-27366.0222736,0.0004797,4]
[357559670,1744152645414,-22435.4137611,0.0004797,4]
[357559671,1744152645424,-151.0,0.0004798,14]
[357559672,1744152645434,-372.762222,0.0004798,14]
[357559673,1744152645444,-372.762222,0.0004798,14]
[357559674,1744152645454,-244.769885,0.0004798,14]
[357559675,1744152645464,-244.769885,0.0004798,14]
[357559676,1744152645474,-174.800116,0.0004798,14]
[357559677,1744152645484,-174.800116,0.0004798,14]
[357559678,1744152645493,-151.0,0.0004798,14]
[357559679,1744152645503,-151.0,0.0004798,14]
[357559680,1744152645513,-261.19549,0.0004798,14]
[357559681,1744152645522,-261.19549,0.0004798,14]
[357559682,1744152645532,-54732.0445471,0.0004798,4]
[357559683,1744152645542,-22435.4137611,0.0004798,4]
[357559684,1744152645551,-224.52067988,0.0004798,7]
[357559685,1744152645561,-157.598232,0.0004799,14]
[357559686,1744152645571,-157.598232,0.0004799,14]
[357559687,1744152645581,-154.816186,0.0004799,14]
[357559688,1744152645591,-267.197525,0.0004799,14]
[357559689,1744152645600,-267.197525,0.0004799,14]
[357559690,1744152645610,-151.0,0.0004799,14]
[357559691,1744152645619,-151.0,0.0004799,14]
[357559692,1744152645629,-151.0,0.0004799,14]
[357559693,1744152645638,-251.767803,0.0004799,14]
[357559694,1744152645649,-151.0,0.0004799,14]
[357559695,1744152645659,-151.0,0.0004799,14]
[357559696,1744152645668,-372.762222,0.0004799,14]
[357559697,1744152645678,-372.762232,0.0004799,14]
[357559698,1744152645688,-244.769885,0.0004799,14]
[357559699,1744152645698,-244.769879,0.0004799,14]
[357559700,1744152645708,-174.800116,0.0004799,14]
[357559701,1744152645719,-174.800108,0.0004799,14]
[357559702,1744152645729,-151.0,0.0004799,14]
[357559703,1744152645740,-151.0,0.0004799,14]
[357559704,1744152645750,-27366.0222736,0.0004799,4]
[357559705,1744152645760,-37392.3562686,0.0004799,4]
[357559707,1744152645770,-261.19549,0.0004799,14]
[357559709,1744152645780,-261.195488,0.0004799,14]
[357559711,1744152645790,-1000.0,0.00048,50]
[357559713,1744152645799,-900.0,0.00048,120]
[357559715,1744152645809,-30752.06475555,0.00048,2]
[357559755,1744152646183,-3963.71159519,0.00048,2]
[357559772,1744152648038,-380.33576625,0.00029771,2]
[357559773,1744152648050,-946.49821339,0.00029771,2]
[357559774,1744152648061,-360.70567172,0.00029771,2]
[357559775,1744152648073,-22212.46034864,0.00029771,2]
[357559776,1744152648083,-2125.0,0.00037777,5]
[357559777,1744152648092,-151.0,0.0004258,14]
[357559778,1744152648102,-50492.6584167,0.00048,2]
[357559779,1744152648112,-151.0,0.00048,14]
[357559780,1744152648122,-157.598232,0.00048,14]
[357559781,1744152648131,-157.598232,0.00048,14]
[357559782,1744152648141,-267.197525,0.00048,14]
[357559783,1744152648150,-267.197525,0.00048,14]
[357559784,1744152648160,-151.0,0.00048,14]
[357559785,1744152648170,-151.0,0.00048,14]
[357559786,1744152648179,-151.0,0.00048,14]
[357559787,1744152648189,-151.0,0.00048,14]
[357559788,1744152648199,-12500.0,0.00048027,10]
[357559789,1744152648208,-123891.01133268,0.00048036,2]
[357559790,1744152648218,-12500.0,0.00048036,10]
[357559791,1744152648228,-12500.0,0.00048045,10]
[357559792,1744152648238,-12500.0,0.00048054,10]
[357559793,1744152648248,-12500.0,0.00048062,10]
[357559794,1744152648257,-12500.0,0.00048071,10]
[357559795,1744152648268,-500.0,0.00048073,10]
[357559796,1744152648278,-12500.0,0.0004808,10]
[357559797,1744152648287,-7478.47125371,0.00048088,4]
[357559798,1744152648297,-12500.0,0.00048089,10]
[357559799,1744152648306,-7478.47125371,0.00048096,4]
[357559800,1744152648316,-12500.0,0.00048098,10]
[357559801,1744152648326,-7478.47125371,0.00048105,4]
[357559802,1744152648336,-12500.0,0.00048106,10]
[357559803,1744152648346,-7478.47125371,0.00048114,4]
[357559804,1744152648356,-12500.0,0.00048115,10]
[357559805,1744152648366,-7478.47125371,0.00048123,4]
[357559806,1744152648376,-12500.0,0.00048124,10]
[357559807,1744152648386,-12500.0,0.00048133,10]
[357559808,1744152648397,-12500.0,0.00048142,10]
[357559809,1744152648407,-12500.0,0.0004815,10]
[357559810,1744152648417,-12500.0,0.00048159,10]
[357559811,1744152648427,-12500.0,0.00048168,10]
[357559812,1744152648438,-12500.0,0.00048177,10]
[357559813,1744152648448,-12500.0,0.00048186,10]
[357559814,1744152648458,-12500.0,0.00048194,10]
[357559815,1744152648469,-12500.0,0.00048203,10]
[357559816,1744152648479,-12500.0,0.00048212,10]
[357559817,1744152648489,-12500.0,0.00048221,10]
[357559818,1744152648499,-12500.0,0.0004823,10]
[357559819,1744152648509,-12500.0,0.00048238,10]
[357559820,1744152648518,-12500.0,0.00048247,10]
[357559821,1744152648528,-12500.0,0.00048256,10]
[357559822,1744152648538,-12500.0,0.00048265,10]
[357559823,1744152648548,-12500.0,0.00048274,10]
[357559824,1744152648558,-151.0,0.00048274,14]
[357559825,1744152648567,-12500.0,0.00048282,10]
[357559826,1744152648577,-12500.0,0.00048291,10]
[357559827,1744152648587,-1096.15,0.000483,14]
[357559828,1744152648597,-12500.0,0.000483,10]
[357559829,1744152648607,-3832.22207016,0.000488,120]
[357559830,1744152648617,-267.197525,0.0004899,14]
[357559831,1744152648627,-267.197525,0.0004899,14]
[357559832,1744152648636,-151.0,0.0004899,14]
[357559833,1744152648646,-151.0,0.0004899,14]
[357559834,1744152648656,-151.0,0.0004899,14]
[357559835,1744152648666,-284.593568,0.0004899,14]
[357559836,1744152648681,-733.9032555,0.00049,50]
[357559837,1744152648692,-34775.05938822,0.00049,120]
[357559838,1744152648701,-157.598232,0.00049,14]
[357559839,1744152648711,-157.598232,0.00049,14]
[357559840,1744152648721,-225.19,0.00049106,120]
[357559841,1744152648731,-302.0,0.0004923,2]
[357559842,1744152648741,-219.02643749,0.00049315,120]
[357559843,1744152648750,-267.197525,0.00049315,14]
[357559844,1744152648760,-267.197525,0.00049315,14]
[357559845,1744152648770,-151.0,0.00049315,14]
[357559846,1744152648779,-152.737882,0.00049315,14]
[357559847,1744152648789,-151.0,0.00049315,14]
[357559848,1744152648799,-999.0,0.00049315,120]
[357559849,1744152648809,-1000.0,0.00049315,15]
[357559850,1744152648818,-1000.0,0.00049315,15]
[357559851,1744152648828,-1000.0,0.00049315,15]
[357559852,1744152648838,-1000.0,0.00049315,15]
[357559853,1744152648847,-1000.0,0.00049315,15]
[357559854,1744152648857,-1000.0,0.00049315,15]
[357559855,1744152648866,-1000.0,0.00049315,15]
[357559856,1744152648876,-1000.0,0.00049315,15]
[357559857,1744152648888,-1000.0,0.00049315,15]
[357559858,1744152648897,-1000.0,0.00049315,15]
[357559859,1744152648907,-1000.0,0.00049315,15]
[357559860,1744152648917,-1000.0,0.00049315,15]
[357559861,1744152648927,-1000.0,0.00049315,15]
[357559862,1744152648936,-1000.0,0.00049315,15]
[357559863,1744152648946,-1000.0,0.00049315,15]
[357559864,1744152648962,-1000.0,0.00049315,15]
[357559865,1744152648971,-1000.0,0.00049315,15]
[357559866,1744152648981,-1000.0,0.00049315,15]
[357559867,1744152648991,-1000.0,0.00049315,15]
[357559868,1744152649001,-743.0,0.00049315,15]
[357559869,1744152649010,-151.0,0.00049425,120]
[357559870,1744152649020,-150.5,0.0004949,120]
[357559871,1744152649029,-157.598232,0.0004949,120]
[357559872,1744152649039,-157.598232,0.0004949,120]
[357559873,1744152649048,-157.598232,0.0004949,120]
[357559874,1744152649058,-157.598239,0.0004949,120]
[357559875,1744152649068,-267.197525,0.0004949,120]
[357559876,1744152649077,-267.197525,0.0004949,120]
[357559877,1744152649087,-267.197525,0.0004949,120]
[357559878,1744152649096,-267.197531,0.0004949,120]
[357559879,1744152649106,-151.0,0.0004949,120]
[357559880,1744152649116,-151.0,0.0004949,120]
[357559881,1744152649126,-151.0,0.0004949,120]
[357559882,1744152649135,-151.0,0.0004949,120]
[357559883,1744152649144,-3107.93116748,0.000495,7]
[357559884,1744152649154,-1000.0,0.000496,7]
[357559885,1744152649164,-1936.0,0.000496,7]
[357559886,1744152649174,-1000.0,0.000496,7]
[357559887,1744152649184,-1000.0,0.000496,7]
[357559888,1744152649194,-1000.0,0.000496,7]
[357559889,1744152649203,-300.00113196,0.000497,120]
[357559890,1744152649213,-1000.0,0.000497,7]
[357559891,1744152649222,-1012.0,0.000499,2]
[357559892,1744152649231,-1000.0,0.000499,7]
[357559893,1744152649241,-167.328432,0.0004992,120]
[357559894,1744152649250,-1286.0,0.0004993,2]
[357559895,1744152649260,-574.0,0.0004993,2]
[357559896,1744152649269,-1326.0,0.0004993,2]
[357559897,1744152649280,-790.0,0.0004993,2]
[357559898,1744152649289,-1277.0,0.0004993,2]
[357559899,1744152649299,-1436.0,0.0004993,2]
[357559900,1744152649310,-907.0,0.0004993,2]
[357559901,1744152649320,-4141.0,0.0004993,2]
[357559902,1744152649330,-544.0,0.0004993,2]
[357559903,1744152649339,-3957.0,0.0004993,2]
[357559904,1744152649349,-852.0,0.0004993,2]
[357559905,1744152649359,-151.0,0.0004993,2]
[357559906,1744152649369,-1120.0,0.0004993,2]
[357559907,1744152649378,-330.42,0.0004995,2]
[357559908,1744152649387,-1416.56191641,0.0004999,2]
[357559909,1744152649397,-150.0,0.00049999,3]
[357559910,1744152649407,-813.45064389,0.00049999,120]
[357559911,1744152649418,-363.92791298,0.00049999,120]
[357559912,1744152649427,-175.62445089,0.00049999,120]
[357559913,1744152649437,-813.45064389,0.00049999,120]
[357559914,1744152649446,-813.45064389,0.00049999,120]
[357559915,1744152649457,-813.45064389,0.00049999,120]
[357559916,1744152649468,-813.45064389,0.00049999,120]
[357559917,1744152649477,-813.45064389,0.00049999,120]
[357559918,1744152649487,-813.45064389,0.00049999,120]
[357559919,1744152649498,-813.45064389,0.00049999,120]
[357559920,1744152649508,-813.45064389,0.00049999,120]
[357559921,1744152649518,-813.45064389,0.00049999,120]
[357559922,1744152649539,-813.45064389,0.00049999,120]
[357559923,1744152649549,-813.45064389,0.00049999,120]
[357559924,1744152649559,-813.45064389,0.00049999,120]
[357559925,1744152649569,-813.45064389,0.00049999,120]
[357559926,1744152649578,-813.45064389,0.00049999,120]
[357559927,1744152649588,-813.45064389,0.00049999,120]
[357559928,1744152649598,-813.45064389,0.00049999,120]
[357559929,1744152649607,-813.45064389,0.00049999,120]
[357559930,1744152649617,-3809.95811824,0.0005,5]
[357559931,1744152649627,-301.112,0.0005,120]
[357559932,1744152649638,-1800.0,0.0005,51]
[357559933,1744152649647,-49948.09293497,0.0005,120]
[357559934,1744152649668,-3911.34279122,0.0005,120]
[357559936,1744153320851,500.0,0.000435,120]
[357559937,1744153466583,399.438423,0.000435,120]
[357559938,1744153554133,-190.27061672,0.000189,2]
[357559939,1744153554154,-250.0,0.00019,2]
[357559940,1744153554176,-500.0,0.00019,2]
[357559941,1744153554197,-180.02885184,0.00019,2]
[357559942,1744153758259,-319.97114816,0.00019,2]
[357559943,1744153758282,-250.0,0.00019895,2]
[357559944,1744153758304,-250.0,0.0002079,2]
[357559945,1744153758325,-250.0,0.000209,2]
[357559946,1744153758347,-300.0,0.00021,2]
[357559947,1744153758368,-227.03302984,0.00023,2]
[357559948,1744153771098,-122.96697016,0.00023,2]
[357559949,1744153771119,-153.99931861,0.000248,2]
[357559950,1744153771140,-299.33503967,0.000249,2]
[357559951,1744153771161,-400.0,0.00025,2]
[357559952,1744153771182,-299.33503965,0.00025297,2]
[357559953,1744153771436,-159.96269191,0.00025397,2]
[357559958,1744153832542,-90.03730809,0.00025397,2]
[357559959,1744153832552,-406.55426188,0.00025458,2]
[357559969,1744153838394,-580.75265861,0.00025458,2]
[357559970,1744153838475,-4352.79307951,0.00025458,2]
[357559971,1744153838485,-174.16,0.00026849,2]
[357559972,1744153838499,-450.0,0.00027,2]
[357559973,1744153838509,-250.0,0.00027937,2]
[357559974,1744153838519,-3413.449934,0.00028855,2]
[357559975,1744153838528,-500.0,0.00029,2]
[357559976,1744153838541,-3031.1,0.00029815,2]
[357559977,1744153838551,-2613.85,0.00029815,2]
[357559978,1744153838561,-150.99,0.00029815,2]
[357559979,1744153838571,-159.56,0.00029815,2]
[357559980,1744153838580,-4553.71,0.00029815,10]
[357559981,1744153838590,-150.99,0.00029815,2]
[357559982,1744153838600,-174.16,0.00032646,2]
[357559983,1744153838610,-171.77,0.00034153,2]
[357559984,1744153838619,-174.71037224,0.000372,103]
[357559985,1744153838629,-159.3,0.00037677,2]
[357559986,1744153838638,-174.16,0.00038443,2]
[357559987,1744153838647,-20000.0,0.000385,2]
[357559988,1744153838656,-20000.0,0.000385,2]
[357559989,1744153838665,-200.0,0.00039412,7]
[357559990,1744153838675,-204.88,0.00039842,2]
[357559991,1744153838684,-23900.0,0.00040188,2]
[357559992,1744153838693,-168.06,0.00040319,2]
[357559993,1744153838702,-179.36,0.00041204,2]
[357559994,1744153838711,-471.555,0.00041555,61]
[357559995,1744153838720,-12500.0,0.000425,2]
[357559996,1744153838730,-1626.99,0.00043118,2]
[357559997,1744153838739,-250.0,0.00043157,2]
[357559998,1744153838748,-1000.0,0.0004323,2]
[357559999,1744153838757,-179.36,0.00043468,2]
[357560000,1744153838766,-497.12578567,0.00043499,31]
[357560001,1744153838776,-12500.0,0.000435,2]
[357560002,1744153838785,-12500.0,0.000435,2]
[357560003,1744153838794,-7793.8,0.00043682,2]
[357560004,1744153838803,-150.0,0.000437,2]
[357560005,1744153838812,-153.6,0.000442,36]
[357560006,1744153838822,-153.6,0.000442,36]
[357560007,1744153838832,-153.6,0.000442,36]
[357560008,1744153838842,-153.6,0.000442,36]
[357560009,1744153838851,-153.6,0.000442,36]
[357560010,1744153838861,-153.6,0.000442,36]
[357560011,1744153838870,-153.6,0.000442,36]
[357560012,1744153838879,-174.16,0.00044239,2]
[357560013,1744153838889,-1506.0,0.000444,2]
[357560014,1744153838899,-1000.0,0.000444,2]
[357560015,1744153838908,-150.12,0.00044847,120]
[357560016,1744153838918,-30247.72953828,0.00045,30]
[357560017,1744153838928,-200.0,0.00045454,2]
[357560018,1744153838937,-179.36,0.00045732,2]
[357560019,1744153838947,-1506.34216734,0.000471,2]
[357560020,1744153838957,-1000.0,0.000471,2]
[357560021,1744153838966,-16738.86932892,0.00047549,15]
[357560022,1744153838976,-185.09389263,0.00047565,15]
[357560023,1744153838985,-184.76997001,0.00047574,23]
[357560024,1744153838994,-261.72276996,0.00047574,28]
[357560025,1744153839004,-500.0,0.000476,10]
[357560026,1744153839013,-12500.0,0.00047614,10]
[357560027,1744153839023,-12500.0,0.00047622,10]
[357560028,1744153839032,-3235.47254974,0.00047631,10]
[357560029,1744153839371,-3623.60042211,0.00047631,10]
[357560030,1744153839382,-493.97951791,0.00047631,10]
[357560031,1744153839398,-293.87752059,0.00047631,10]
[357560032,1744153839420,-4853.06998965,0.00047631,10]
[357560033,1744153839430,-12500.0,0.0004764,10]
[357560034,1744153839439,-1743.06410266,0.00047649,10]
[357560035,1744153839451,-1116.59129204,0.00047649,10]
[357560042,1744153840471,-8891.52698353,0.00047649,10]
[357560043,1744153840763,-748.81762177,0.00047649,10]
[357560044,1744153840773,-248.64143303,0.00047658,10]
[357560045,1744153840784,-2549.05889236,0.00047658,10]
[357560046,1744153840796,-9702.29967461,0.00047658,10]
[357560047,1744153840806,-667.02952799,0.00047661,120]
[357560048,1744153840816,-667.02952799,0.00047661,120]
[357560049,1744153840825,-667.02952799,0.00047661,120]
[357560050,1744153840835,-667.02952799,0.00047661,120]
[357560051,1744153840845,-667.02952799,0.00047661,120]
[357560052,1744153840854,-667.02952799,0.00047661,120]
[357560053,1744153840863,-667.02952799,0.00047661,120]
[357560054,1744153840872,-667.02952799,0.00047661,120]
[357560055,1744153840882,-667.02952799,0.00047661,120]
[357560056,1744153840891,-667.02952799,0.00047661,120]
[357560057,1744153840900,-667.02952799,0.00047661,120]
[357560058,1744153840909,-667.02952799,0.00047661,120]
[357560059,1744153840919,-667.02952799,0.00047661,120]
[357560060,1744153840929,-667.02952799,0.00047661,120]
[357560061,1744153840938,-671.79402461,0.00047661,120]
[357560062,1744153840948,-671.79402461,0.00047661,120]
[357560063,1744153840961,-671.79402461,0.00047661,120]
[357560064,1744153840970,-671.79402461,0.00047661,120]
[357560065,1744153840979,-671.79402461,0.00047661,120]
[357560066,1744153840988,-671.79402461,0.00047661,120]
[357560067,1744153840997,-671.79402461,0.00047661,120]
[357560068,1744153841006,-671.79402461,0.00047661,120]
[357560069,1744153841016,-671.79402461,0.00047661,120]
[357560070,1744153841025,-671.79402461,0.00047661,120]
[357560071,1744153841034,-671.79402461,0.00047661,120]
[357560072,1744153841044,-799.53667627,0.00047661,120]
[357560073,1744153841053,-799.53667627,0.00047661,120]
[357560074,1744153841062,-799.53667627,0.00047661,120]
[357560075,1744153841071,-799.53667627,0.00047661,120]
[357560076,1744153841080,-218349.886287,0.00047662,3]
[357560077,1744153841089,-79906.9531219,0.00047662,3]
[357560078,1744153841098,-151.47,0.00047662,2]
[357560079,1744153841107,-151.47,0.00047662,2]
[357560080,1744153841116,-151.47,0.00047662,2]
[357560081,1744153841125,-8733.99545149,0.00047665,3]
[357560082,1744153841135,-6658.91276016,0.00047665,3]
[357560083,1744153841144,-12500.0,0.00047666,10]
[357560084,1744153841153,-384685.35822155,0.00047672,2]
[357560085,1744153841165,-1534.62,0.00047672,2]
[357560086,1744153841181,-11432.35765034,0.00047672,2]
[357560087,1744153841192,-5373.35412436,0.00047672,2]
[357560096,1744153843356,-150.97381288,0.00047672,2]
[357560105,1744153846404,-3440.11348533,0.00047672,2]
[357560106,1744153846442,-581.8685,0.00047672,2]
[357560108,1744153988109,950.221508,7.945e-05,2]
[357560109,1744154374217,1096.98973864,0.000435,120]
[357560117,1744154748108,-250.0,0.00019,2]
[357560118,1744154748137,-3643.16095774,0.0002,2]
[357560120,1744154798964,500.0,0.00043503,30]
[357560121,1744154882069,2775.20250298,0.00015,2]
[357560122,1744154882096,3725.42401098,0.00015,2]
[357560123,1744154882123,3725.42401098,0.00015,2]
[357560124,1744154882151,3725.42401098,0.00015,2]
[357560125,1744154882178,3725.42401098,0.00015,2]
[357560126,1744154882205,3725.42401098,0.00015,2]
[357560127,1744154882233,3725.42401098,0.00015,2]
[357560128,1744154882259,3725.42401098,0.00015,2]
[357560129,1744154882286,3725.42401098,0.00015,2]
[357560130,1744154882312,3725.42401098,0.00015,2]
[357560131,1744154882341,277700.0,0.00015,2]
[357560132,1744154882371,100000.0,0.00015,2]
[357560133,1744154882401,100000.0,0.00015,2]
[357560134,1744154882428,100000.0,0.00015,2]
[357560135,1744154882458,1100.0,0.00015,2]
[357560136,1744154882488,5580.0,0.00015,2]
[357560137,1744154882520,2000.0,0.00015,2]
[357560138,1744154882547,2000.0,0.00015,2]
[357560139,1744154882573,2000.0,0.00015,2]
[357560140,1744154882602,400000.0,0.00015,2]
[357560141,1744154901648,-7411.34853446,0.00015,2]
[357560142,1744154901695,-7411.34853446,0.00015,2]
[357560143,1744154901755,-7411.34853446,0.00015,2]
[357560144,1744154901855,-7411.34853446,0.00015,2]
[357560145,1744154901956,-7411.34853446,0.00015,2]
[357560146,1744154902009,-7411.34853446,0.00015,2]
[357560147,1744154902061,-7411.34853446,0.00015,2]
[357560148,1744154902098,-7411.34853446,0.00015,2]
[357560149,1744154902133,-7411.34853446,0.00015,2]
[357560150,1744154902178,-7411.34853446,0.00015,2]
[357560151,1744154902227,-7411.34853446,0.00015,2]
[357560152,1744154902268,-3045.51873201,0.00015,2]
[357560153,1744154902309,-7411.34853446,0.00015,2]
[357560154,1744154902350,-7411.34853446,0.00015,2]
[357560155,1744154902399,-7411.34853446,0.00015,2]
[357560156,1744154902448,-7411.34853446,0.00015,2]
[357560157,1744154918057,-1022.25898971,0.000149,2]
[357560158,1744154924509,5450.99320822,0.00015,5]
[357560159,1744154926610,-9695.66346943,0.00015,2]
[357560160,1744154926659,-9695.66346943,0.00015,2]
[357560161,1744154926717,-9695.66346943,0.00015,2]
[357560162,1744154926927,-9695.66346943,0.00015,2]
[357560163,1744154926988,-9695.66346943,0.00015,2]
[357560164,1744154927029,-9695.66346943,0.00015,2]
[357560165,1744154927075,-1894.97814709,0.00015,2]
[357560166,1744154948126,-1950.56789114,0.00015,2]
[357560167,1744154948148,-1000.0,0.000197,7]
[357560168,1744154948170,-2100.0,0.000198,7]
[357560169,1744154948256,-485.47739286,0.000199,7]
[357560170,1744154961102,-2714.52260714,0.000199,7]
[357560171,1744154961124,-15064.98239601,0.000199,2]
[357560172,1744154961145,-500.0,0.00019973,2]
[357560173,1744154961167,-500.0,0.00019973,2]
[357560174,1744154961188,-1000.0,0.00019999,2]
[357560175,1744154961213,-57973.98507685,0.0002,2]
[357560176,1744154966588,219.81572462,0.00014999,2]
[357560177,1744154969106,-4440.670374,0.0002,2]
[357560181,1744154979427,302.25,0.00013699,2]
[357560182,1744154979743,302.25,0.00013699,2]
[357560183,1744154980075,302.25,0.00013699,2]
[357560184,1744154980475,302.25,0.00013699,2]
[357560185,1744154980780,302.25,0.00013699,2]
[357560186,1744154981152,302.25,0.00013699,2]
[357560187,1744154981476,302.25,0.00013699,2]
[357560188,1744154982416,302.25,0.00013699,2]
[357560189,1744154982703,302.25,0.00013699,2]
[357560190,1744154983284,302.25,0.00013699,2]
[357560191,1744154983731,302.25,0.00013699,2]
[357560192,1744154984609,302.25,0.00013699,2]
[357560193,1744154985021,302.25,0.00013699,2]
[357560194,1744154985352,302.25,0.00013699,2]
[357560195,1744154986201,302.25,0.00013699,2]
[357560196,1744154987044,302.25,0.00013699,2]
[357560197,1744154987487,302.25,0.00013699,2]
[357560198,1744154987840,302.25,0.00013699,2]
[357560199,1744154988729,302.25,0.00013699,2]
[357560200,1744154989971,302.39785878,0.00013699,2]
[357560202,1744155007699,625.288746,7.945e-05,2]
[357560214,1744155032388,-229.18097035,0.000199,2]
[357560215,1744155032400,-145.3862359,0.000199,2]
[357560216,1744155032455,-39.38373411,0.000199,2]
[357560217,1744155032466,-224.52067988,0.0001999,2]
[357560218,1744155032478,-300.0,0.00019999,2]
[357560219,1744155032490,-148.11925918,0.00019999,2]
[357560220,1744155032549,-30.6593061,0.00019999,2]
[357560221,1744155032561,-802.94574066,0.0002,2]
[357560222,1744155032574,-493.99999992,0.0002,2]
[357560223,1744155032588,-371.51000001,0.0002,2]
[357560224,1744155032604,-1861.85462059,0.0002,2]
[357560225,1744155032629,-261.29548673,0.0002,2]
[357560226,1744155032643,-2340.0,0.0002,2]
[357560227,1744155032656,-1076.61428054,0.0002,2]
[357560228,1744155032798,-655.15861575,0.0002,2]
[357560230,1744155032835,-1348.16384016,0.0002,2]
[357560232,1744155032848,-1997.21734795,0.0002,2]
[357560269,1744155038443,-1527.40908036,0.0002,2]
[357560271,1744155038593,-3728.8663324,0.0002,2]